[Event "Live Chess"]
[Site "Chess.com"]
[Date "2023.05.21"]
[Round "-"]
[White "LL220284LL"]
[Black "Singapourfeuj"]
[Result "0-1"]
[WhiteElo "2316"]
[BlackElo "2198"]
[TimeControl "300"]
[EndTime "3:54:36 PDT"]
[Termination "Singapourfeuj won by resignation"]

1. c4 {[%clk 0:04:58.1]} 1... Nf6 {[%clk 0:04:58.7]} 2. g3 {[%clk 0:04:56.6]}
2... g6 {[%clk 0:04:58]} 3. Bg2 {[%clk 0:04:55.5]} 3... Bg7 {[%clk 0:04:57.4]}
4. Nf3 {[%clk 0:04:54.4]} 4... O-O {[%clk 0:04:56.1]} 5. b3 {[%clk 0:04:52.7]}
5... c5 {[%clk 0:04:53.2]} 6. Bb2 {[%clk 0:04:51.9]} 6... Nc6 {[%clk 0:04:52.5]}
7. O-O {[%clk 0:04:50.5]} 7... d6 {[%clk 0:04:51.3]} 8. e3 {[%clk 0:04:49]} 8...
Bg4 {[%clk 0:04:49.1]} 9. Nc3 {[%clk 0:04:47.1]} 9... Ne5 {[%clk 0:04:46.3]} 10.
d4 {[%clk 0:04:45.3]} 10... cxd4 {[%clk 0:04:44.2]} 11. exd4 {[%clk 0:04:45.2]}
11... Nxf3+ {[%clk 0:04:42.9]} 12. Bxf3 {[%clk 0:04:45.1]} 12... Bxf3 {[%clk
0:04:41.7]} 13. Qxf3 {[%clk 0:04:45]} 13... Rb8 {[%clk 0:04:39.5]} 14. Rfe1
{[%clk 0:04:41.9]} 14... a6 {[%clk 0:04:38.2]} 15. Ne4 {[%clk 0:04:39.7]} 15...
Nxe4 {[%clk 0:04:35.8]} 16. Qxe4 {[%clk 0:04:39.6]} 16... Re8 {[%clk 0:04:34.5]}
17. Rad1 {[%clk 0:04:38.7]} 17... b5 {[%clk 0:04:33.1]} 18. c5 {[%clk
0:04:23.9]} 18... d5 {[%clk 0:04:25.7]} 19. Qd3 {[%clk 0:04:15.5]} 19... Qd7
{[%clk 0:04:24.4]} 20. Bc3 {[%clk 0:04:11.3]} 20... Qc6 {[%clk 0:04:22.6]} 21.
Re2 {[%clk 0:04:03.3]} 21... e6 {[%clk 0:04:18.8]} 22. Rde1 {[%clk 0:04:02.3]}
22... h5 {[%clk 0:04:14.1]} 23. Bd2 {[%clk 0:04:01.4]} 23... Ra8 {[%clk
0:04:07.9]} 24. a3 {[%clk 0:03:53.3]} 24... a5 {[%clk 0:04:06.8]} 25. Bf4 {[%clk
0:03:51.6]} 25... b4 {[%clk 0:04:03.8]} 26. a4 {[%clk 0:03:50.5]} 26... Qa6
{[%clk 0:03:55.5]} 27. Qd2 {[%clk 0:03:45.8]} 27... Rac8 {[%clk 0:03:50.4]} 28.
Be5 {[%clk 0:03:42.5]} 28... Bxe5 {[%clk 0:03:41.1]} 29. Rxe5 {[%clk 0:03:42.4]}
29... Kg7 {[%clk 0:03:39]} 30. h4 {[%clk 0:03:40.9]} 30... f6 {[%clk 0:03:37.7]}
31. R5e3 {[%clk 0:03:36.5]} 31... Re7 {[%clk 0:03:32.5]} 32. R1e2 {[%clk
0:03:33.5]} 32... Rce8 {[%clk 0:03:31]} 33. Qe1 {[%clk 0:03:25.2]} 33... Qc6
{[%clk 0:03:25.7]} 34. f4 {[%clk 0:03:17.6]} 34... Kf7 {[%clk 0:03:22]} 35. Qb1
{[%clk 0:03:15.9]} 35... e5 {[%clk 0:03:15.4]} 36. fxe5 {[%clk 0:03:07.9]} 36...
fxe5 {[%clk 0:03:14]} 37. Rf2+ {[%clk 0:02:53.5]} 37... Kg7 {[%clk 0:03:12.5]}
38. Ref3 {[%clk 0:02:47.5]} 38... e4 {[%clk 0:03:05.8]} 39. Rf6 {[%clk
0:02:46.6]} 39... Qc8 {[%clk 0:03:02.6]} 40. Qf1 {[%clk 0:02:42.4]} 40... Qc7
{[%clk 0:02:50.8]} 41. R2f4 {[%clk 0:02:36.1]} 41... e3 {[%clk 0:02:48.2]} 42.
Qe2 {[%clk 0:02:24.1]} 42... Qd7 {[%clk 0:02:40.2]} 43. Kg2 {[%clk 0:02:21.7]}
43... Qc7 {[%clk 0:02:30.3]} 44. Qc2 {[%clk 0:02:10]} 44... Re4 {[%clk
0:02:21.3]} 45. Rf7+ {[%clk 0:01:54.3]} 45... Qxf7 {[%clk 0:02:19.6]} 46. Rxf7+
{[%clk 0:01:54.2]} 46... Kxf7 {[%clk 0:02:18.1]} 47. Qe2 {[%clk 0:01:52]} 47...
R8e6 {[%clk 0:02:14.2]} 48. Kf1 {[%clk 0:01:41.8]} 48... Rf6+ {[%clk 0:02:12.1]}
49. Ke1 {[%clk 0:01:41.2]} 49... Kg7 {[%clk 0:02:05.4]} 50. Qb5 {[%clk
0:01:38.5]} 50... e2 {[%clk 0:02:02.9]} 0-1

[Event "Live Chess"]
[Site "Chess.com"]
[Date "2023.05.21"]
[Round "-"]
[White "LiamClery2020"]
[Black "Ferrarifan27"]
[Result "1-0"]
[WhiteElo "2012"]
[BlackElo "2072"]
[TimeControl "300"]
[EndTime "3:54:48 PDT"]
[Termination "LiamClery2020 won by resignation"]

1. e4 {[%clk 0:04:59.2]} 1... e5 {[%clk 0:04:58.5]} 2. Nc3 {[%clk 0:04:56.1]}
2... Nc6 {[%clk 0:04:57.5]} 3. Bc4 {[%clk 0:04:55.1]} 3... Bc5 {[%clk
0:04:56.1]} 4. Qg4 {[%clk 0:04:54.3]} 4... g6 {[%clk 0:04:52]} 5. Qg3 {[%clk
0:04:52.6]} 5... d6 {[%clk 0:04:46]} 6. Nf3 {[%clk 0:04:51.7]} 6... Nf6 {[%clk
0:04:43.5]} 7. d3 {[%clk 0:04:50.9]} 7... Nh5 {[%clk 0:04:30.8]} 8. Qg5 {[%clk
0:04:40.9]} 8... f6 {[%clk 0:04:27.1]} 9. Qh4 {[%clk 0:04:31.7]} 9... Nb4 {[%clk
0:04:00.2]} 10. Bb3 {[%clk 0:04:30.4]} 10... Qe7 {[%clk 0:03:47.5]} 11. a3
{[%clk 0:04:29.4]} 11... Nc6 {[%clk 0:03:46.2]} 12. Nd5 {[%clk 0:04:28.2]} 12...
Qg7 {[%clk 0:03:44.1]} 13. g4 {[%clk 0:04:26.5]} 13... Nf4 {[%clk 0:03:10]} 14.
Bxf4 {[%clk 0:04:19.7]} 14... exf4 {[%clk 0:03:06.4]} 15. Nxf6+ {[%clk
0:04:16.3]} 15... Kf8 {[%clk 0:03:03.8]} 16. Nd5 {[%clk 0:04:07.5]} 16... h6
{[%clk 0:02:50]} 17. g5 {[%clk 0:04:02.5]} 17... hxg5 {[%clk 0:02:46.6]} 18.
Qxg5 {[%clk 0:03:59.9]} 18... Bh3 {[%clk 0:02:34.8]} 19. Qxf4+ {[%clk
0:03:58.1]} 19... Ke8 {[%clk 0:02:34]} 20. Nf6+ {[%clk 0:03:47.6]} 20... Kd8
{[%clk 0:02:30.4]} 21. Ng5 {[%clk 0:03:45.6]} 21... Ne5 {[%clk 0:02:14]} 22. Be6
{[%clk 0:03:33.2]} 22... Bg2 {[%clk 0:01:44.9]} 23. Rg1 {[%clk 0:03:20.6]} 23...
Rf8 {[%clk 0:01:37]} 24. Bf7 {[%clk 0:03:05.6]} 24... Nf3+ {[%clk 0:01:22.2]}
25. Kd1 {[%clk 0:03:00.4]} 25... Nxg5 {[%clk 0:01:10.8]} 26. Qxg5 {[%clk
0:02:55.9]} 26... Rxf7 {[%clk 0:01:07.9]} 27. Nh5+ {[%clk 0:02:51.4]} 27... Kd7
{[%clk 0:01:01.4]} 28. Nxg7 {[%clk 0:02:49.8]} 28... Bf3+ {[%clk 0:01:00.8]} 29.
Ke1 {[%clk 0:02:42.3]} 29... Rxg7 {[%clk 0:00:57.2]} 30. Qf6 {[%clk 0:02:37.9]}
30... Rag8 {[%clk 0:00:53.2]} 31. Qxf3 {[%clk 0:02:36.7]} 1-0

[Event "Live Chess"]
[Site "Chess.com"]
[Date "2023.05.21"]
[Round "-"]
[White "JoRoSaR"]
[Black "GwaryTek"]
[Result "0-1"]
[WhiteElo "1697"]
[BlackElo "2069"]
[TimeControl "300"]
[EndTime "3:54:53 PDT"]
[Termination "GwaryTek won by resignation"]

1. e4 {[%clk 0:04:59.4]} 1... Nf6 {[%clk 0:04:59.4]} 2. Nc3 {[%clk 0:04:58.1]}
2... d5 {[%clk 0:04:56.7]} 3. e5 {[%clk 0:04:57.2]} 3... Ne4 {[%clk 0:04:56.1]}
4. d4 {[%clk 0:04:54.5]} 4... Nxc3 {[%clk 0:04:55.2]} 5. bxc3 {[%clk 0:04:54.4]}
5... c5 {[%clk 0:04:54.7]} 6. Bd2 {[%clk 0:04:52.9]} 6... Nc6 {[%clk 0:04:54.3]}
7. Nf3 {[%clk 0:04:50.3]} 7... Bg4 {[%clk 0:04:53]} 8. Bb5 {[%clk 0:04:49]} 8...
cxd4 {[%clk 0:04:51.9]} 9. cxd4 {[%clk 0:04:46.4]} 9... e6 {[%clk 0:04:50.6]}
10. O-O {[%clk 0:04:44.9]} 10... Be7 {[%clk 0:04:49.3]} 11. c3 {[%clk 0:04:44]}
11... O-O {[%clk 0:04:48]} 12. Bxc6 {[%clk 0:04:43]} 12... bxc6 {[%clk
0:04:46.9]} 13. Qe2 {[%clk 0:04:42.6]} 13... c5 {[%clk 0:04:44.9]} 14. Qe3
{[%clk 0:04:41.7]} 14... Rc8 {[%clk 0:04:41.1]} 15. h3 {[%clk 0:04:40.1]} 15...
Bh5 {[%clk 0:04:37.8]} 16. Rab1 {[%clk 0:04:35.5]} 16... Bg6 {[%clk 0:04:34]}
17. Rb7 {[%clk 0:04:32]} 17... Rc7 {[%clk 0:04:31.1]} 18. Rb2 {[%clk 0:04:18.7]}
18... Qd7 {[%clk 0:04:17.3]} 19. Ra1 {[%clk 0:04:10.1]} 19... Rfc8 {[%clk
0:04:14.8]} 20. a4 {[%clk 0:04:08]} 20... cxd4 {[%clk 0:04:00.5]} 21. cxd4
{[%clk 0:04:07.9]} 21... Rc4 {[%clk 0:03:55.2]} 22. a5 {[%clk 0:04:05.5]} 22...
Qc7 {[%clk 0:03:44.8]} 23. a6 {[%clk 0:04:03.1]} 23... Rb8 {[%clk 0:02:56.4]}
24. Raa2 {[%clk 0:04:01.9]} 24... h6 {[%clk 0:02:51]} 25. g4 {[%clk 0:03:53.3]}
25... Bb1 {[%clk 0:02:49.4]} 26. Rxb8+ {[%clk 0:03:48.1]} 26... Qxb8 {[%clk
0:02:49.3]} 27. Ra1 {[%clk 0:03:47.5]} 27... Qb2 {[%clk 0:02:45.5]} 28. Ra5
{[%clk 0:03:08.5]} 28... Be4 {[%clk 0:02:37.8]} 29. Kg2 {[%clk 0:03:06.9]} 29...
Bg5 {[%clk 0:02:02.8]} 30. Qe2 {[%clk 0:03:02.1]} 30... Bxd2 {[%clk 0:01:37.1]}
0-1

[Event "Live Chess"]
[Site "Chess.com"]
[Date "2023.05.21"]
[Round "-"]
[White "RockTroll"]
[Black "Biranidun"]
[Result "0-1"]
[WhiteElo "2237"]
[BlackElo "2545"]
[TimeControl "300"]
[EndTime "3:54:53 PDT"]
[Termination "Biranidun won by resignation"]

1. Nf3 {[%clk 0:04:58.9]} 1... Nf6 {[%clk 0:04:56.4]} 2. c4 {[%clk 0:04:57.9]}
2... g6 {[%clk 0:04:55.9]} 3. Nc3 {[%clk 0:04:55.9]} 3... Bg7 {[%clk 0:04:55.3]}
4. e4 {[%clk 0:04:52.4]} 4... d6 {[%clk 0:04:54.3]} 5. d4 {[%clk 0:04:51.8]}
5... O-O {[%clk 0:04:52.8]} 6. Be2 {[%clk 0:04:51.1]} 6... e5 {[%clk 0:04:51.2]}
7. O-O {[%clk 0:04:50.3]} 7... Nc6 {[%clk 0:04:50.7]} 8. d5 {[%clk 0:04:48.5]}
8... Ne7 {[%clk 0:04:50.3]} 9. Ne1 {[%clk 0:04:45]} 9... Nd7 {[%clk 0:04:48.8]}
10. f3 {[%clk 0:04:44.7]} 10... f5 {[%clk 0:04:45.2]} 11. g4 {[%clk 0:04:41.2]}
11... Kh8 {[%clk 0:04:39.9]} 12. h4 {[%clk 0:04:34.9]} 12... Nf6 {[%clk
0:04:37]} 13. Kg2 {[%clk 0:04:13.9]} 13... Qd7 {[%clk 0:04:26.3]} 14. Kg3 {[%clk
0:04:02.9]} 14... f4+ {[%clk 0:03:57.1]} 15. Kf2 {[%clk 0:04:01.4]} 15... h5
{[%clk 0:03:50.3]} 16. g5 {[%clk 0:04:00.7]} 16... Qh3 {[%clk 0:03:47]} 17. Ng2
{[%clk 0:03:37.3]} 17... Ng4+ {[%clk 0:03:45.9]} 18. fxg4 {[%clk 0:03:30.6]}
18... hxg4 {[%clk 0:03:44.9]} 19. Bd3 {[%clk 0:02:21.8]} 19... f3 {[%clk
0:03:22.6]} 20. Ne3 {[%clk 0:01:49.8]} 20... Qxh4+ {[%clk 0:03:20.9]} 21. Kg1
{[%clk 0:01:49.4]} 21... f2+ {[%clk 0:03:04.2]} 0-1

[Event "Live Chess"]
[Site "Chess.com"]
[Date "2023.05.21"]
[Round "-"]
[White "lateforthesky"]
[Black "NatashaRegan"]
[Result "1-0"]
[WhiteElo "2123"]
[BlackElo "1724"]
[TimeControl "300"]
[EndTime "3:55:02 PDT"]
[Termination "lateforthesky won by resignation"]

1. e4 {[%clk 0:04:57.4]} 1... Nf6 {[%clk 0:04:57.4]} 2. e5 {[%clk 0:04:56.1]}
2... Nd5 {[%clk 0:04:56.3]} 3. c4 {[%clk 0:04:55.3]} 3... Nb6 {[%clk 0:04:54.9]}
4. d4 {[%clk 0:04:54.4]} 4... d6 {[%clk 0:04:54.2]} 5. exd6 {[%clk 0:04:53.6]}
5... exd6 {[%clk 0:04:52.8]} 6. Nc3 {[%clk 0:04:49.7]} 6... Be7 {[%clk
0:04:49.7]} 7. Be3 {[%clk 0:04:47.6]} 7... O-O {[%clk 0:04:47.1]} 8. Rc1 {[%clk
0:04:45.6]} 8... Nc6 {[%clk 0:04:43.3]} 9. Be2 {[%clk 0:04:44.1]} 9... d5 {[%clk
0:04:41.3]} 10. b3 {[%clk 0:04:37.6]} 10... Bf6 {[%clk 0:04:28.5]} 11. c5 {[%clk
0:04:30.4]} 11... Nd7 {[%clk 0:04:17.9]} 12. Nf3 {[%clk 0:04:29.2]} 12... Nxc5
{[%clk 0:03:57.8]} 13. dxc5 {[%clk 0:04:24.8]} 13... d4 {[%clk 0:03:55.5]} 14.
Nxd4 {[%clk 0:03:44.7]} 14... Nxd4 {[%clk 0:03:52.9]} 15. O-O {[%clk 0:03:43.5]}
15... Nxe2+ {[%clk 0:03:46.8]} 16. Qxe2 {[%clk 0:03:41.1]} 16... Bf5 {[%clk
0:03:39.6]} 17. Rfd1 {[%clk 0:03:39.6]} 17... Qc8 {[%clk 0:03:29.9]} 18. h3
{[%clk 0:03:32.9]} 18... Re8 {[%clk 0:03:20.1]} 19. Nd5 {[%clk 0:03:29.8]} 19...
Be5 {[%clk 0:03:15.3]} 20. Qf3 {[%clk 0:03:23.7]} 20... c6 {[%clk 0:03:11.5]}
21. Nc3 {[%clk 0:03:05.2]} 21... Qe6 {[%clk 0:02:58.3]} 22. Bd4 {[%clk
0:02:59.4]} 22... Bc7 {[%clk 0:02:36]} 23. Re1 {[%clk 0:02:48.2]} 23... Qg6
{[%clk 0:02:32]} 24. Ne2 {[%clk 0:02:28.6]} 24... Be4 {[%clk 0:02:28.3]} 25. Qg4
{[%clk 0:02:26.1]} 25... Qh6 {[%clk 0:02:12.9]} 26. Ng3 {[%clk 0:02:14.6]} 26...
Bd5 {[%clk 0:01:56]} 27. Nf5 {[%clk 0:02:10.5]} 27... Qg6 {[%clk 0:01:34.2]} 28.
Ne7+ {[%clk 0:02:04.2]} 28... Rxe7 {[%clk 0:01:31.1]} 29. Rxe7 {[%clk
0:02:03.7]} 29... Qxg4 {[%clk 0:01:14.8]} 30. hxg4 {[%clk 0:02:01.3]} 30... Bf4
{[%clk 0:01:13.7]} 31. Rce1 {[%clk 0:01:58.2]} 31... Kf8 {[%clk 0:01:09]} 32.
Rxb7 {[%clk 0:01:54.3]} 32... a5 {[%clk 0:01:00.6]} 33. a4 {[%clk 0:01:45.2]}
33... h6 {[%clk 0:00:53.5]} 34. Be5 {[%clk 0:01:36.9]} 34... Re8 {[%clk
0:00:47.4]} 35. Bd6+ {[%clk 0:01:32.5]} 35... Bxd6 {[%clk 0:00:43.5]} 36. Rxe8+
{[%clk 0:01:31.5]} 36... Kxe8 {[%clk 0:00:40.8]} 37. cxd6 {[%clk 0:01:30.8]}
37... Be6 {[%clk 0:00:36.2]} 38. f3 {[%clk 0:01:26.2]} 38... Bd7 {[%clk
0:00:33]} 39. Kf2 {[%clk 0:01:24]} 39... f6 {[%clk 0:00:29.4]} 40. Ke3 {[%clk
0:01:23]} 40... g5 {[%clk 0:00:27.4]} 41. Kd4 {[%clk 0:01:21.8]} 41... Kd8
{[%clk 0:00:21.7]} 42. Kc5 {[%clk 0:01:20.5]} 42... Kc8 {[%clk 0:00:19.3]} 43.
Rc7+ {[%clk 0:01:14]} 43... Kd8 {[%clk 0:00:18]} 44. Rxc6 {[%clk 0:01:07.2]}
44... Bxc6 {[%clk 0:00:16.4]} 45. Kxc6 {[%clk 0:01:06.4]} 45... Kc8 {[%clk
0:00:15]} 46. d7+ {[%clk 0:01:00]} 46... Kd8 {[%clk 0:00:13.7]} 47. Kd6 {[%clk
0:00:59.3]} 1-0

[Event "Live Chess"]
[Site "Chess.com"]
[Date "2023.05.21"]
[Round "-"]
[White "WilliWeisswurst"]
[Black "Trendle"]
[Result "0-1"]
[WhiteElo "1779"]
[BlackElo "2658"]
[TimeControl "300"]
[EndTime "3:55:04 PDT"]
[Termination "Trendle won by resignation"]

1. e4 {[%clk 0:04:59.9]} 1... e5 {[%clk 0:04:57.7]} 2. Nf3 {[%clk 0:04:59.3]}
2... Nc6 {[%clk 0:04:56.5]} 3. Bc4 {[%clk 0:04:58.8]} 3... Nf6 {[%clk
0:04:54.1]} 4. d3 {[%clk 0:04:56.5]} 4... Be7 {[%clk 0:04:52.8]} 5. O-O {[%clk
0:04:54.6]} 5... O-O {[%clk 0:04:50.6]} 6. h3 {[%clk 0:04:53.2]} 6... d5 {[%clk
0:04:46.1]} 7. exd5 {[%clk 0:04:52.1]} 7... Nxd5 {[%clk 0:04:46]} 8. Re1 {[%clk
0:04:48.3]} 8... Nb6 {[%clk 0:04:42.7]} 9. Bb3 {[%clk 0:04:47.1]} 9... Bd6
{[%clk 0:04:37.9]} 10. Bg5 {[%clk 0:04:38.5]} 10... Qd7 {[%clk 0:04:33.4]} 11.
Nbd2 {[%clk 0:04:25]} 11... Kh8 {[%clk 0:04:29.1]} 12. Ne4 {[%clk 0:04:20]}
12... f5 {[%clk 0:04:18.3]} 13. Nxd6 {[%clk 0:04:10.7]} 13... cxd6 {[%clk
0:04:18.2]} 14. Nh4 {[%clk 0:03:44.9]} 14... Qe8 {[%clk 0:04:02.1]} 15. c3
{[%clk 0:03:28.2]} 15... Be6 {[%clk 0:03:58.6]} 16. Bxe6 {[%clk 0:03:16.7]}
16... Qxe6 {[%clk 0:03:57.4]} 17. Qh5 {[%clk 0:03:13.7]} 17... f4 {[%clk
0:03:52.5]} 18. Re4 {[%clk 0:02:50.1]} 18... Kg8 {[%clk 0:03:48.7]} 19. Rae1
{[%clk 0:02:41.7]} 19... Nd5 {[%clk 0:03:47.5]} 20. c4 {[%clk 0:02:36.3]} 20...
Ndb4 {[%clk 0:03:46.2]} 21. d4 {[%clk 0:02:14.6]} 21... Qf7 {[%clk 0:03:25.7]}
22. Qg4 {[%clk 0:02:05.9]} 22... Nxd4 {[%clk 0:03:21]} 23. Bxf4 {[%clk 0:01:26]}
23... Nd3 {[%clk 0:03:19.4]} 24. Bg3 {[%clk 0:01:00.6]} 24... Nxe1 {[%clk
0:03:11.1]} 25. Rxe1 {[%clk 0:00:59.3]} 25... Qxc4 {[%clk 0:03:06.8]} 26. b3
{[%clk 0:00:22.4]} 26... Qe6 {[%clk 0:03:00.6]} 27. Qe4 {[%clk 0:00:21]} 27...
Rac8 {[%clk 0:02:50.5]} 28. Qxd4 {[%clk 0:00:20.2]} 28... Rc2 {[%clk 0:02:44.6]}
29. Qe3 {[%clk 0:00:17.8]} 29... Qf6 {[%clk 0:02:41.7]} 30. Nf3 {[%clk 0:00:17]}
30... Rfc8 {[%clk 0:02:39.9]} 31. Nxe5 {[%clk 0:00:13.6]} 31... dxe5 {[%clk
0:02:36.6]} 32. Bxe5 {[%clk 0:00:13.2]} 32... Qf7 {[%clk 0:02:36]} 33. Bg3
{[%clk 0:00:11.5]} 33... h6 {[%clk 0:02:33.8]} 34. Kh2 {[%clk 0:00:09.6]} 34...
R2c3 {[%clk 0:02:33.1]} 35. Qe2 {[%clk 0:00:08.6]} 35... Rc2 {[%clk 0:02:32.2]}
36. Qe3 {[%clk 0:00:08.2]} 36... R2c6 {[%clk 0:02:32]} 37. Qe2 {[%clk
0:00:07.9]} 37... Rf6 {[%clk 0:02:30.9]} 38. Qb5 {[%clk 0:00:06.7]} 38... a6
{[%clk 0:02:29.7]} 39. Qb6 {[%clk 0:00:05.9]} 39... Rxb6 {[%clk 0:02:28]} 0-1

[Event "Live Chess"]
[Site "Chess.com"]
[Date "2023.05.21"]
[Round "-"]
[White "MarkLim1"]
[Black "Vitalii18a"]
[Result "0-1"]
[WhiteElo "1685"]
[BlackElo "1145"]
[TimeControl "300"]
[EndTime "3:55:08 PDT"]
[Termination "Vitalii18a won by resignation"]

1. d4 {[%clk 0:04:59.5]} 1... d5 {[%clk 0:04:58.5]} 2. Nf3 {[%clk 0:04:58.5]}
2... e6 {[%clk 0:04:56.7]} 3. e3 {[%clk 0:04:57.1]} 3... c5 {[%clk 0:04:48.5]}
4. dxc5 {[%clk 0:04:53.5]} 4... Bxc5 {[%clk 0:04:47]} 5. a3 {[%clk 0:04:52.3]}
5... Nf6 {[%clk 0:04:45.6]} 6. b4 {[%clk 0:04:51.2]} 6... Bb6 {[%clk 0:04:41.6]}
7. Bb2 {[%clk 0:04:50.1]} 7... a5 {[%clk 0:04:39.5]} 8. b5 {[%clk 0:04:48.8]}
8... a4 {[%clk 0:04:37.2]} 9. c4 {[%clk 0:04:45.8]} 9... Ba5+ {[%clk 0:04:17.2]}
10. Bc3 {[%clk 0:04:40.8]} 10... dxc4 {[%clk 0:04:03.9]} 11. Qxa4 {[%clk
0:04:36.3]} 11... Bxc3+ {[%clk 0:04:01.2]} 0-1

[Event "Live Chess"]
[Site "Chess.com"]
[Date "2023.05.21"]
[Round "-"]
[White "Ed_Knox"]
[Black "OleksiyJr1"]
[Result "0-1"]
[WhiteElo "1453"]
[BlackElo "992"]
[TimeControl "300"]
[EndTime "3:55:22 PDT"]
[Termination "OleksiyJr1 won by checkmate"]

1. d4 {[%clk 0:04:54.4]} 1... Nf6 {[%clk 0:04:55.7]} 2. Bf4 {[%clk 0:04:52.8]}
2... c6 {[%clk 0:04:55.2]} 3. e3 {[%clk 0:04:47.8]} 3... g5 {[%clk 0:04:53.6]}
4. Bxg5 {[%clk 0:04:43.1]} 4... Qa5+ {[%clk 0:04:50.9]} 5. Nc3 {[%clk
0:04:36.5]} 5... Qxg5 {[%clk 0:04:50]} 6. Nf3 {[%clk 0:04:34.7]} 6... Qg6 {[%clk
0:04:43.8]} 7. Bd3 {[%clk 0:04:33.3]} 7... Qxg2 {[%clk 0:04:38]} 8. Rg1 {[%clk
0:04:32.3]} 8... Qh3 {[%clk 0:04:32]} 9. Rg3 {[%clk 0:04:27.7]} 9... Qe6 {[%clk
0:04:27.8]} 10. Ng5 {[%clk 0:04:04.9]} 10... Qd6 {[%clk 0:04:14.5]} 11. Qf3
{[%clk 0:03:34.4]} 11... Qc7 {[%clk 0:04:02.5]} 12. Nce4 {[%clk 0:03:28.2]}
12... d5 {[%clk 0:04:00.9]} 13. Nxf6+ {[%clk 0:03:22.1]} 13... exf6 {[%clk
0:04:00.8]} 14. Qxf6 {[%clk 0:03:21.1]} 14... Rg8 {[%clk 0:03:53.7]} 15. Ne6
{[%clk 0:03:05.9]} 15... Bxe6 {[%clk 0:03:47.7]} 16. Rxg8 {[%clk 0:03:03.9]}
16... Qxh2 {[%clk 0:03:43.9]} 17. O-O-O {[%clk 0:02:58.9]} 17... Nd7 {[%clk
0:03:39.2]} 18. Rdg1 {[%clk 0:02:20.9]} 18... Nxf6 {[%clk 0:03:20.5]} 19. R8g2
{[%clk 0:02:13.3]} 19... Qc7 {[%clk 0:03:09.2]} 20. Rg3 {[%clk 0:01:54.3]} 20...
O-O-O {[%clk 0:03:06.3]} 21. Rf3 {[%clk 0:01:52.7]} 21... Ne4 {[%clk 0:03:02.4]}
22. Rf4 {[%clk 0:01:39.9]} 22... Bh6 {[%clk 0:02:24.2]} 23. Rh4 {[%clk
0:01:34.9]} 23... Bf8 {[%clk 0:02:06.5]} 24. Rxh7 {[%clk 0:01:32]} 24... Nxf2
{[%clk 0:02:04.9]} 25. Bg6 {[%clk 0:01:21.6]} 25... Rd7 {[%clk 0:01:53.1]} 26.
Bh5 {[%clk 0:01:16.9]} 26... f5 {[%clk 0:01:44.5]} 27. Rh8 {[%clk 0:01:09.6]}
27... Rd8 {[%clk 0:01:28.9]} 28. Bg6 {[%clk 0:01:01]} 28... Bb4 {[%clk
0:01:18.9]} 29. Rh7 {[%clk 0:00:57.9]} 29... Qa5 {[%clk 0:01:13.3]} 30. Kb1
{[%clk 0:00:53.1]} 30... Kb8 {[%clk 0:00:58.6]} 31. Rf1 {[%clk 0:00:51.7]} 31...
Ne4 {[%clk 0:00:56.8]} 32. Rh2 {[%clk 0:00:40.2]} 32... Nd2+ {[%clk 0:00:54.3]}
33. Rxd2 {[%clk 0:00:35.2]} 33... Bxd2 {[%clk 0:00:54.2]} 34. Bxf5 {[%clk
0:00:34.4]} 34... Bxf5 {[%clk 0:00:41.5]} 35. Rxf5 {[%clk 0:00:33]} 35... Bxe3
{[%clk 0:00:38.9]} 36. Rf1 {[%clk 0:00:30.1]} 36... Rg8 {[%clk 0:00:34.9]} 37.
a3 {[%clk 0:00:22.8]} 37... Rg1 {[%clk 0:00:33.9]} 38. Rxg1 {[%clk 0:00:21.9]}
38... Bxg1 {[%clk 0:00:33.8]} 39. Ka2 {[%clk 0:00:21]} 39... Qe1 {[%clk
0:00:33.7]} 40. c4 {[%clk 0:00:19.9]} 40... Qd1 {[%clk 0:00:33.6]} 41. cxd5
{[%clk 0:00:18.9]} 41... Qxd4 {[%clk 0:00:33.5]} 42. b4 {[%clk 0:00:17.3]} 42...
Qxd5+ {[%clk 0:00:32.5]} 43. Kb2 {[%clk 0:00:14.3]} 43... Bd4+ {[%clk
0:00:32.4]} 44. Kc2 {[%clk 0:00:12.6]} 44... Qa2+ {[%clk 0:00:30.2]} 45. Kd3
{[%clk 0:00:11.5]} 45... Qb2 {[%clk 0:00:27.1]} 46. Kc4 {[%clk 0:00:10.5]} 46...
Qc3# {[%clk 0:00:25]} 0-1

[Event "Live Chess"]
[Site "Chess.com"]
[Date "2023.05.21"]
[Round "-"]
[White "Mugzwang"]
[Black "ameetghasi100"]
[Result "0-1"]
[WhiteElo "1566"]
[BlackElo "2618"]
[TimeControl "300"]
[EndTime "3:55:59 PDT"]
[Termination "ameetghasi100 won by checkmate"]

1. Nf3 {[%clk 0:04:56.6]} 1... Nf6 {[%clk 0:04:59.9]} 2. c4 {[%clk 0:04:53.9]}
2... c5 {[%clk 0:04:57.5]} 3. Nc3 {[%clk 0:04:52.3]} 3... Nc6 {[%clk 0:04:50.7]}
4. d4 {[%clk 0:04:50.4]} 4... cxd4 {[%clk 0:04:46.7]} 5. Nxd4 {[%clk 0:04:49.9]}
5... e6 {[%clk 0:04:46.6]} 6. e4 {[%clk 0:04:35.5]} 6... Bb4 {[%clk 0:04:44.9]}
7. Nxc6 {[%clk 0:04:19]} 7... bxc6 {[%clk 0:04:44.8]} 8. Bd3 {[%clk 0:04:05]}
8... e5 {[%clk 0:04:43.4]} 9. O-O {[%clk 0:04:02.6]} 9... d6 {[%clk 0:04:37.6]}
10. Bg5 {[%clk 0:03:55.1]} 10... h6 {[%clk 0:04:34.3]} 11. Bd2 {[%clk
0:03:51.9]} 11... g5 {[%clk 0:04:28.6]} 12. Ne2 {[%clk 0:03:48.5]} 12... Bc5
{[%clk 0:04:26.9]} 13. Ng3 {[%clk 0:03:39.6]} 13... h5 {[%clk 0:04:24.5]} 14.
Nf5 {[%clk 0:03:35.4]} 14... Bxf5 {[%clk 0:04:21]} 15. exf5 {[%clk 0:03:34.2]}
15... g4 {[%clk 0:04:20.9]} 16. Be3 {[%clk 0:03:25.6]} 16... Bxe3 {[%clk
0:04:18.5]} 17. fxe3 {[%clk 0:03:24.6]} 17... Qb6 {[%clk 0:04:18.2]} 18. Qe2
{[%clk 0:03:18.4]} 18... Rd8 {[%clk 0:04:16.6]} 19. b3 {[%clk 0:03:16.4]} 19...
h4 {[%clk 0:04:11.8]} 20. Kh1 {[%clk 0:03:12.4]} 20... Ke7 {[%clk 0:04:04.9]}
21. Rad1 {[%clk 0:02:55.9]} 21... d5 {[%clk 0:03:59]} 22. cxd5 {[%clk
0:02:48.1]} 22... cxd5 {[%clk 0:03:58.9]} 23. Rc1 {[%clk 0:02:31.4]} 23... Rdg8
{[%clk 0:03:37]} 24. Qd2 {[%clk 0:02:05.8]} 24... d4 {[%clk 0:03:31.4]} 25. exd4
{[%clk 0:01:59.9]} 25... Qxd4 {[%clk 0:03:31.3]} 26. Rfe1 {[%clk 0:01:54.9]}
26... Nh5 {[%clk 0:03:28.1]} 27. Qe3 {[%clk 0:01:50.3]} 27... Qxe3 {[%clk
0:03:20.3]} 28. Rxe3 {[%clk 0:01:48.9]} 28... Kf6 {[%clk 0:03:18.5]} 29. Rc6+
{[%clk 0:01:37]} 29... Kg5 {[%clk 0:03:17.1]} 30. Rc5 {[%clk 0:01:35.6]} 30...
f6 {[%clk 0:03:15.8]} 31. Rc7 {[%clk 0:01:31.8]} 31... Rd8 {[%clk 0:03:10.1]}
32. Rxa7 {[%clk 0:01:20.3]} 32... Rd4 {[%clk 0:02:59.8]} 33. Ra4 {[%clk
0:01:12.2]} 33... Rd6 {[%clk 0:02:56.5]} 34. Rc4 {[%clk 0:00:57.7]} 34... Rhd8
{[%clk 0:02:53.8]} 35. Rc3 {[%clk 0:00:45.7]} 35... Nf4 {[%clk 0:02:52.3]} 36.
Bf1 {[%clk 0:00:34.9]} 36... Rd1 {[%clk 0:02:51.3]} 37. Kg1 {[%clk 0:00:32.4]}
37... R8d2 {[%clk 0:02:50.7]} 38. Rc6 {[%clk 0:00:16.2]} 38... Rxg2+ {[%clk
0:02:48.9]} 39. Kh1 {[%clk 0:00:12.1]} 39... Rxf1# {[%clk 0:02:48.8]} 0-1